Cogmind - Beta 9.6 @@@ ROGUE MODE // 2020.08.09 @ 21:16:00 Player: Plexion Result: Destroyed by G-73 Enforcer with Phase Gun Performance ------------- Evolutions (8) 4000 Regions Visited (19) 3800 Robots Destroyed (124) 620 Value Destroyed (5595) 5595 Prototype IDs (37) 740 Alien Tech Used (0) 0 Bonus (3312) 3312 TOTAL SCORE: 18067 Bonus ------- High Alert Combat Kills 228 Follower Combat Kills 2361 Network Hubs Disabled 200 Aligned with FarCom 300 Met Data Miner 300 A7 Reached Mainframe 300 Met R17 at Cetus 500 Friendly Fire -877 Cogmind --------- Core Integrity 0/1450 Matter 136/300 Energy 99/100 System Corruption 28% Temperature Cool (0) Movement Core (50) Location -2/Research Parts ------- > --- POWER (2) -------- (None) > --- PROPULSION (4) --- (None) > --- UTILITY (14) ----- Advanced Coolant Injector Hacking Suite Hacking Suite > --- WEAPON (3) ------- (None) > --- INVENTORY (4) ---- High-capacity Storage Unit Gamma Bomb Array Peak State ------------ > --- POWER ------------ Micro Fission Core > --- PROPULSION ------- Advanced Heavy Siege Treads Advanced Heavy Siege Treads > --- UTILITY ---------- Advanced Heat Sink Advanced Heat Sink Advanced Coolant Injector High-capacity Storage Unit Advanced Terrain Scanner Improved Terrain Scan Processor Advanced Target Analyzer Improved Overload Amplifier Improved Utility Shielding Improved Thermal Shield > --- WEAPON ----------- Enhanced Quantum Rifle Enhanced Nova Cannon > --- INVENTORY -------- Advanced Medium Treads Advanced Medium Treads Advanced Medium Treads Advanced Medium Treads Gamma Bomb Array Long-range Missile Launcher Phasing Sabre [Rating: 112] Favorites ----------- Power Angular Momentum Engine Engine Angular Momentum Engine Power Core Micro Nuclear Core Reactor Light Antimatter Reactor Propulsion Compact Wheel Treads Advanced Medium Treads Leg Flexi-carbon Leg Wheel Compact Wheel Utility High-capacity Storage Unit Device Advanced Heat Sink Storage High-capacity Storage Unit Processor Advanced Signal Interpreter Hackware Hacking Suite Protection Centrium Medium Armor Plating Weapon Flak Gun Energy Gun High-powered Shock Rifle Energy Cannon Plasma Cannon Ballistic Gun Flak Gun Launcher Heavy Missile Launcher Special Weapon Plasma Cutter Slashing Weapon Phasing Sabre Build | -11 -10 -10 -10 -9 -8 -7 -7 -7 -7 -6 -6 -6 -6 -6 -6 -5 -4 -3 -2 ------- Run | Scr Mat Min Exi Min Mat Fac Low Low Dat Pro Fac Ext Cet Arc Hub Fac Fac Res Res Slots Evolved 16 | . . . . . 4 2 . . . . 2 . . . . 2 2 2 2 Power 1 | . . . . . . 1 . . . . . . . . . . . . . Propulsion 2 | . . . . . 1 . . . . . . . . . . 1 . . . Utility 12 | . . . . . 3 1 . . . . 1 . . . . 1 2 2 2 Weapon 1 | . . . . . . . . . . . 1 . . . . . . . . Parts Attached 267 | 6 2 2 3 5 18 4 7 12 1 2 13 24 16 2 13 34 18 43 42 Power 19 | 1 . . . 1 1 1 . 1 . . . 1 1 . . 3 1 4 4 Engine 12 | 1 . . . . 1 1 . . . . . 1 . . . 3 . 2 3 Core 4 | . . . . 1 . . . 1 . . . . . . . . . 2 . Reactor 3 | . . . . . . . . . . . . . 1 . . . 1 . 1 Propulsion 57 | 2 . . . 3 1 . . 2 1 . . 7 1 . 3 7 4 11 15 Treads 11 | . . . . . . . . . . . . . . . . . . . 11 Leg 23 | 2 . . . . . . . . . . . 5 1 . 3 7 . 3 2 Wheel 23 | . . . . 3 1 . . 2 1 . . 2 . . . . 4 8 2 Hover . | . . . . . . . . . . . . . . . . . . . . Flight . | . . . . . . . . . . . . . . . . . . . . Utility 87 | 1 2 . 2 . 10 2 3 5 . . 7 5 6 2 3 10 6 14 9 Device 21 | . . . . . 1 1 2 2 . . 1 . . 2 . 1 2 4 5 Storage 7 | 1 2 . 2 . . . . . . . . . . . . 1 . . 1 Processor 9 | . . . . . 3 . . . . . . . . . . 3 2 1 . Hackware 2 | . . . . . . . . . . . . . . . . . . . 2 Protection 48 | . . . . . 6 1 1 3 . . 6 5 6 . 3 5 2 9 1 Artifact . | . . . . . . . . . . . . . . . . . . . . Weapon 104 | 2 . 2 1 1 6 1 4 4 . 2 6 11 8 . 7 14 7 14 14 Energy Gun 9 | . . . . . . . . . . . . . 1 . . 1 . 3 4 Energy Cannon 9 | . . . . . 1 1 . . . . 1 . . . . 2 . . 4 Ballistic Gun 52 | 2 . 1 . 1 5 . 2 2 . 1 3 8 4 . 5 7 3 6 2 Ballistic Cannon . | . . . . . . . . . . . . . . . . . . . . Launcher 8 | . . 1 1 . . . . 2 . . . . . . . 1 . 1 2 Special Weapon 6 | . . . . . . . . . . . . . 2 . . 1 . 2 1 Impact Weapon . | . . . . . . . . . . . . . . . . . . . . Slashing Weapon 20 | . . . . . . . 2 . . 1 2 3 1 . 2 2 4 2 1 Piercing Weapon . | . . . . . . . . . . . . . . . . . . . . Special Melee Weapon . | . . . . . . . . . . . . . . . . . . . . Unidentified Prototypes 4 | . . . . . 1 . . . . . . . 2 . . . . 1 . Parts Lost 105 | . . . . . 1 . . 4 . . 1 4 . . 6 20 . 37 32 Power 13 | . . . . . . . . 1 . . 1 . . . 1 1 . 5 4 Propulsion 34 | . . . . . . . . 2 . . . 2 . . 1 6 . 14 9 Utility 29 | . . . . . . . . 1 . . . 1 . . 3 5 . 11 8 Weapon 29 | . . . . . 1 . . . . . . 1 . . 1 8 . 7 11 Highest Loss Streak 27 | . . . . . 1 . . 2 . . 1 2 . . 4 9 . 27 18 Average Slot Usage (%) 91 | . 91 100 100 95 87 91 92 97 100 100 98 96 100 100 96 92 99 84 50 Engine 7 | . 14 14 14 11 4 15 15 8 7 7 4 4 6 6 4 10 7 2 1 Core 2 | . . . . 2 4 . . 5 7 7 6 6 5 . . . . . 1 Reactor 1 | . . . . . . . . . . . . . . 6 6 . 2 3 . Leg 10 | . 28 28 28 3 . . . . . . . 11 20 20 20 19 7 1 1 Wheel 8 | . . . . 20 18 15 15 20 23 23 20 8 . . . . 13 15 2 Device 6 | . . . . . . 6 14 13 15 15 6 1 . 3 5 3 9 11 15 Storage 13 | . 20 28 28 28 18 15 15 15 15 15 13 13 13 13 13 11 10 8 2 Processor 7 | . . . . . 8 7 7 7 7 7 6 6 6 6 6 9 15 10 6 Protection 14 | . . . . . 15 15 7 8 7 7 20 24 26 22 19 16 15 15 . Ballistic Gun 14 | . 28 28 27 27 17 7 10 14 15 14 14 18 13 13 17 12 12 7 1 Slashing Weapon 1 | . . . . . . . 2 . . . 4 . 2 . . 1 2 3 1 Naked Turns . | . . . . . . . . . . . . . . . . . . . . Heaviest Build 156 | 12 40 41 74 74 99 102 99 99 96 96 113 111 135 135 132 134 123 156 76 Greatest Support 160 | 20 20 20 20 28 38 38 38 38 42 42 42 58 58 58 58 80 70 64 160 Greatest Overweight (x) 37 | . 1 2 3 3 2 2 2 3 2 2 2 10 2 2 2 37 7 23 13 Average Overweight (x) 1 | . . 2 2 2 2 2 2 2 2 2 2 2 1 2 1 1 1 2 1 Largest Inventory Capacity 28 | 6 16 16 20 20 20 20 20 20 20 20 20 20 20 20 20 28 20 20 12 Average Capacity 18 | 4 10 16 16 20 20 20 20 20 20 20 20 20 20 20 20 20 20 19 8 Most Carried 20 | 2 8 10 15 20 20 20 20 20 16 17 20 20 20 20 20 20 20 20 8 Average Carried 16 | 1 5 9 11 16 19 18 19 17 16 16 19 19 20 20 19 18 18 17 2 Final Capacity 20 | 6 16 16 20 20 20 20 20 20 20 20 20 20 20 20 20 20 20 12 4 Final Carried 20 | 2 8 10 14 20 20 20 20 17 16 17 20 20 20 20 19 17 20 8 2 Class Distribution -------------------- 28% | Hauler-Mutant 17% | Scavenger-Tank 11% | Scavenger-Mutant 10% | Mutant 8% | Hauler-Assassin 5% | Scavenger-Skirmisher 5% | Commander-Tank 3% | Hauler-Tank 3% | Commander-Mutant Dominant Class ---------------- Mutant | -10/Materials Mutant | -10/Mines Mutant | -10/Exiles Hauler-Mutant | -9/Mines Hauler-Mutant | -8/Materials Hauler-Mutant | -7/Factory Hauler-Mutant | -7/Lower Caves Hauler-Mutant | -7/Lower Caves Hauler-Mutant | -7/Data Miner Hauler-Mutant | -6/Proximity Caves Hauler-Mutant | -6/Factory Scavenger-Tank | -6/Extension Commander-Mutant | -6/Cetus Scavenger-Mutant | -6/Archives Scavenger-Tank | -6/Hub_04(d) Scavenger-Tank | -5/Factory Scavenger-Skirmisher | -4/Factory Hauler-Assassin | -3/Research Scavenger-Skirmisher | -2/Research Resources | -11 -10 -10 -10 -9 -8 -7 -7 -7 -7 -6 -6 -6 -6 -6 -6 -5 -4 -3 -2 ----------- Run | Scr Mat Min Exi Min Mat Fac Low Low Dat Pro Fac Ext Cet Arc Hub Fac Fac Res Res Matter Collected 5536 | 213 27 17 282 23 393 26 292 369 . 53 157 594 248 100 488 820 118 1044 272 Remotely . | . . . . . . . . . . . . . . . . . . . . Salvage Created 6343 | . 47 36 . 23 361 26 331 486 . . 68 578 204 321 883 1503 118 918 440 Parts 338 | . 9 4 . 4 27 2 14 15 . . 6 27 8 17 42 66 7 70 20 Haulers Intercepted 2 | . . . . . 2 . . . . . . . . . . . . . . Recyclers Shooed 2 | . . . . . . . . . . . . . . . . 2 . . . Parts Field Recycled . | . . . . . . . . . . . . . . . . . . . . Retrieved Matter . | . . . . . . . . . . . . . . . . . . . . Parts Self-Destructed 42 | . . . . . . . 14 20 . 8 . . . . . . . . . Prevented . | . . . . . . . . . . . . . . . . . . . . Kills | -11 -10 -10 -10 -9 -8 -7 -7 -7 -7 -6 -6 -6 -6 -6 -6 -5 -4 -3 -2 ------- Run | Scr Mat Min Exi Min Mat Fac Low Low Dat Pro Fac Ext Cet Arc Hub Fac Fac Res Res Combat Hostiles Destroyed 98 | . 3 4 . . 6 . 8 11 . . 1 6 1 4 14 22 2 10 6 Melee 1 | . . . . . . . . . . . . . . . . . . 1 . Guns 86 | . 3 2 . . 6 . 8 7 . . 1 6 1 4 14 20 2 9 3 Cannons 2 | . . . . . . . . . . . . . . . . 1 . . 1 AOE 8 | . . 2 . . . . . 4 . . . . . . . 1 . . 1 Classes Destroyed 16 | . 1 . . 1 3 . 1 3 . . . 1 . . 4 2 . . . Worker 8 | . . . . . . . . . . . . . . . 2 . . 6 . Builder 3 | . . . . . . . . . . . . . . . . 1 . 1 1 Tunneler 2 | . . . . 1 . 1 . . . . . . . . . . . . . Hauler 2 | . . . . . 2 . . . . . . . . . . . . . . Recycler 2 | . . . . . . . . . . . . 1 . . . 1 . . . Mechanic 1 | . . . . . . . . 1 . . . . . . . . . . . Operator 1 | . . . . . . . . . . . . . . . 1 . . . . Watcher 2 | . . . . . . . . . . . . . . . 1 . . 1 . Swarmer 20 | . 3 4 . . 3 . 4 2 . . . 1 . . . 3 . . . Saboteur 1 | . . . . . . . . . . . . . . . 1 . . . . Grunt 22 | . . . . . . . 3 3 . . . 2 . . 8 3 . 2 1 Brawler 4 | . . . . . . . . 4 . . . . . . . . . . . Duelist 3 | . . . . . . . . 1 . . . . . . 2 . . . . Sentry 18 | . . . . . 3 . . 1 . . 1 3 . 4 1 5 . . . Hunter 5 | . . . . . . . . . . . . . . . . 2 . 1 2 Programmer 24 | . . . . . . . 1 . . . . . . . 2 9 2 7 3 Cetus Guard 2 | . . . . . . . . . . . . . 2 . . . . . . Thug 3 | . . . . . 1 . . . . . . 1 1 . . . . . . Butcher 1 | . . . . . . . . . . . . 1 . . . . . . . Best Kill Streak 7 | . 3 3 . 1 3 1 5 7 . . 1 2 1 1 4 6 2 4 2 Combat Bots Only 7 | . 3 3 . . 3 . 5 7 . . 1 2 1 1 4 5 2 3 2 Max Kills in Single Turn 3 | . 1 2 . 1 2 1 2 1 . . 1 2 3 1 3 1 1 2 1 Gunslinging 1 | . . . . . . . 1 . . . . . . . 1 . . . . Exploded 2 | . . 2 . . . . . 1 . . . . . . . 1 . . 1 Melee 1 | . . . . . . . . . . . . . . . . . . 1 . Uniques/NPCs Destroyed . | . . . . . . . . . . . . . . . . . . . . Combat | -11 -10 -10 -10 -9 -8 -7 -7 -7 -7 -6 -6 -6 -6 -6 -6 -5 -4 -3 -2 -------- Run | Scr Mat Min Exi Min Mat Fac Low Low Dat Pro Fac Ext Cet Arc Hub Fac Fac Res Res Damage Taken 20791 | . 139 82 . . 135 17 585 735 . . 434 868 246 434 1727 3664 97 5656 5972 Core 3036 | . 49 17 . . . . 98 79 . . 31 40 22 . 77 251 20 887 1465 Absorbed by Shields 112 | . . . . . . . . . . . . . 112 . . . . . . Core Remaining (%) 78 | 100 . . . 73 100 . . . . 74 . . . . 80 74 98 31 . Volleys Fired 344 | . 7 7 . 1 25 1 15 24 . 1 10 23 9 10 33 74 3 66 35 Largest 3 | . 2 2 . 2 2 2 2 2 . 2 3 3 3 3 3 3 3 3 3 Hottest 215 | . 40 40 . 40 80 108 56 56 . 56 86 88 125 130 100 141 89 160 215 Shots Fired 816 | . 14 12 . 2 47 2 30 42 . 2 25 68 24 29 97 178 9 176 59 Gun 742 | . 14 10 . 2 44 1 30 36 . 2 25 68 22 29 97 143 9 173 37 Cannon 57 | . . . . . 3 1 . . . . . . . . . 35 . . 18 Launcher 12 | . . 2 . . . . . 6 . . . . . . . . . . 4 Special 5 | . . . . . . . . . . . . . 2 . . . . 3 . Kinetic 655 | . 14 10 . 2 44 1 30 36 . 2 25 68 16 20 97 124 9 140 17 Thermal 69 | . . . . . 3 1 . . . . . . . . . 35 . . 30 Explosive 12 | . . 2 . . . . . 6 . . . . . . . . . . 4 Electromagnetic 75 | . . . . . . . . . . . . . 6 9 . 19 . 33 8 Robot Hit Streak 18 | . 3 3 . 4 12 3 11 12 . 1 8 12 13 9 10 18 5 9 12 Robot Miss Streak 10 | . 3 2 . . 10 2 5 6 . 7 4 7 3 1 3 8 1 6 2 Penetration Max 2 | . . . . . . . . . . . . 1 1 1 1 1 1 2 . Secondary Targets 16 | . 1 . . . . . 3 1 . . . 1 1 . 5 2 . 2 . Max Gunslinging Chain 1 | . 1 . . . . . 1 1 . . . 1 1 . 1 1 . 1 . Shots Hit Robots 578 | . 6 6 . 1 33 1 30 36 . 2 22 56 13 18 59 133 5 109 48 Core Hits 385 | . 4 4 . 1 28 2 34 50 . 1 12 58 13 9 33 73 4 42 17 Critical Hits 56 | . . . . . . . . . . . . . 3 2 12 7 2 25 5 Critical Kills 16 | . . . . . . . . . . . . . 2 2 5 2 1 4 . Critical Parts Destroyed 39 | . . . . . . . . . . . . . 1 . 7 4 1 21 5 Melee Attacks 103 | . . . . . . . 6 . . 2 12 3 1 . 7 8 14 44 6 Impact . | . . . . . . . . . . . . . . . . . . . . Slashing 103 | . . . . . . . 6 . . 2 12 3 1 . 7 8 14 44 6 Piercing . | . . . . . . . . . . . . . . . . . . . . Sneak Attacks 3 | . . . . . . . . . . . . . . . . . . 3 . Combat Hostiles . | . . . . . . . . . . . . . . . . . . . . Follow-up Attacks . | . . . . . . . . . . . . . . . . . . . . Damage Inflicted 16147 | . 75 140 . 13 578 23 580 1418 . 14 415 1117 403 637 1788 3345 251 3434 1916 Guns 12000 | . 75 35 . 13 578 23 580 773 . 14 415 1117 369 573 1492 2441 251 2453 798 Cannons 1474 | . . . . . . . . . . . . . . . . 743 . . 731 Explosions 1814 | . . 105 . . . . . 645 . . . . . 64 242 161 . 238 359 Melee 824 | . . . . . . . . . . . . . 34 . 47 . . 743 . Ramming 35 | . . . . . . . . . . . . . . . 7 . . . 28 Kinetic 10643 | . 75 35 . 13 578 23 580 773 . 14 415 1117 304 368 1492 2150 251 2123 332 Thermal 2109 | . . . . . . . . . . . . . . 64 . 845 . 118 1082 Explosive 1229 | . . 105 . . . . . 645 . . . . . . . . . 120 359 Electromagnetic 1307 | . . . . . . . . . . . . . 65 205 242 350 . 330 115 Impact . | . . . . . . . . . . . . . . . . . . . . Slashing 824 | . . . . . . . . . . . . . 34 . 47 . . 743 . Piercing . | . . . . . . . . . . . . . . . . . . . . Highest Corruption 28 | . 2 2 2 2 . . 3 3 3 3 . . . . 15 15 2 13 28 Average Corruption 5 | . 2 2 2 2 . . 2 3 3 3 . . . . 1 8 2 8 10 Corruption Purged . | . . . . . . . . . . . . . . . . . . . . Effects 159 | . . 1 5 1 . . 5 8 1 7 . . . . 3 67 1 35 25 Message Errors 31 | . . 1 1 . . . 1 1 1 . . . . . 1 12 1 8 4 Matter Fused 27 | . . . . . . . 3 . . 2 . . . . . 11 . 6 5 Heat Flow Errors 16 | . . . 2 1 . . 1 1 . 1 . . . . . 8 . 1 1 Energy Discharges 14 | . . . 1 . . . . 1 . 1 . . . . . 6 . 2 3 Parts Rejected 1 | . . . . . . . . . . . . . . . . . . 1 . Data Loss (minor) 21 | . . . 1 . . . . 2 . 3 . . . . 1 6 . 4 4 Data Loss (major) 2 | . . . . . . . . . . . . . . . . 2 . . . Misfires 1 | . . . . . . . . . . . . . . . . . . 1 . Misdirections 8 | . . . . . . . . . . . . . . . . 2 . . 6 Targeting Errors 33 | . . . . . . . . 3 . . . . . . 1 17 . 10 2 Weapon Failures 5 | . . . . . . . . . . . . . . . . 3 . 2 . Overload Shots . | . . . . . . . . . . . . . . . . . . . . Overflow Damage 186 | . . . . . . . . . . . . . . 19 89 28 . 42 8 Projectiles 32 | . . . . . . . . . . . . . . . . 26 . . 6 Explosions 133 | . . . . . . . . . . . . . . 19 77 2 . 33 2 Melee 21 | . . . . . . . . . . . . . . . 12 . . 9 . Knockbacks . | . . . . . . . . . . . . . . . . . . . . Impact . | . . . . . . . . . . . . . . . . . . . . Kinetic . | . . . . . . . . . . . . . . . . . . . . Secondary . | . . . . . . . . . . . . . . . . . . . . Self-Inflicted Damage 591 | . . 26 . . . . . 5 . . . . . 53 98 . . 157 252 Shots 11 | . . 2 . . . . . 1 . . . . . 1 1 . . 2 4 Rammed 9 | . . . . . . . . . . . . . . . . . . 1 8 Targets Rammed 10 | . . . . . . . . . . . . . . . 1 . . 1 8 Kicked 1 | . . . . . . . . . . . . . . . 1 . . . . Crushed . | . . . . . . . . . . . . . . . . . . . . Highest Temperature 392 | . . . 141 151 44 51 192 173 . 184 1 285 262 388 279 392 91 198 195 Average Temperature 105 | . . . 72 81 19 29 54 59 . 98 1 92 91 160 103 125 43 110 83 Received Heat Transfer 1858 | . 36 . . . 45 . 126 207 . . 66 237 13 45 291 258 . 435 99 Effects 12 | . . . . . . . . . . . . 1 4 4 . 3 . . . Shutdowns 2 | . . . . . . . . . . . . . . 1 . 1 . . . Energy Bleed 4 | . . . . . . . . . . . . 1 1 1 . 1 . . . Interference 5 | . . . . . . . . . . . . . 3 1 . 1 . . . Damage (minor) 1 | . . . . . . . . . . . . . . 1 . . . . . Siege Activations . | . . . . . . . . . . . . . . . . . . . . Robots Corrupted . | . . . . . . . . . . . . . . . . . . . . Combat Hostiles . | . . . . . . . . . . . . . . . . . . . . Parts Fried 2 | . . . . . . . . . . . . . . . 2 . . . . Impact Corruptions 1 | . . . . . . . . . . . . . . . . . . . 1 Robots Melted . | . . . . . . . . . . . . . . . . . . . . Combat Hostiles . | . . . . . . . . . . . . . . . . . . . . Parts Melted 17 | . . . . . . . . . . . . . . . . 5 . . 12 Heat Transferred 2449 | . . . . . . . . . . . . . . 50 . 1350 . 50 999 Parts Sabotaged . | . . . . . . . . . . . . . . . . . . . . Parts Stolen . | . . . . . . . . . . . . . . . . . . . . Parts Stripped . | . . . . . . . . . . . . . . . . . . . . Power Chain Reactions 3 | . . . . . . . . . . . . . . 1 . 1 . 1 . Missiles Intercepted . | . . . . . . . . . . . . . . . . . . . . Alert | -11 -10 -10 -10 -9 -8 -7 -7 -7 -7 -6 -6 -6 -6 -6 -6 -5 -4 -3 -2 ------- Run | Scr Mat Min Exi Min Mat Fac Low Low Dat Pro Fac Ext Cet Arc Hub Fac Fac Res Res Peak Influence 1039 | . 127 154 . 5 150 54 . . . . 205 581 1039 539 651 413 171 167 139 Average Influence 198 | . 69 114 . 4 58 44 . . . . 97 269 648 504 319 261 110 55 60 Maximum Alert Level 3 | . . . . . . . . . . . 1 2 3 2 2 2 . . . Low Security (%) 65 | 100 100 100 . 100 100 100 . . . . 99 36 11 . 40 22 100 100 100 Level 1 21 | . . . . . . . . . . . . 43 30 4 29 67 . . . Level 2 10 | . . . . . . . . . . . . 19 3 95 30 10 . . . Level 3 3 | . . . . . . . . . . . . . 54 . . . . . . Level 4 . | . . . . . . . . . . . . . . . . . . . . Level 5 . | . . . . . . . . . . . . . . . . . . . . High Security . | . . . . . . . . . . . . . . . . . . . . Max Security . | . . . . . . . . . . . . . . . . . . . . Squads Dispatched 33 | . . . . 1 2 . . 1 . . . 2 2 . 4 6 1 11 3 Investigation 7 | . . . . 1 2 . . . . . . . 2 . . . . 1 1 Extermination 11 | . . . . . . . . . . . . . . . 1 3 1 4 2 Reinforcement 6 | . . . . . . . . . . . . 2 . . 2 . . 2 . Assault 2 | . . . . . . . . 1 . . . . . . 1 . . . . Garrison 7 | . . . . . . . . . . . . . . . . 3 . 4 . Intercept . | . . . . . . . . . . . . . . . . . . . . Construction Impeded 3 | . . . . . . . . . . . . 1 . . . . . 2 . Haulers Reinforced . | . . . . . . . . . . . . . . . . . . . . Stealth | -11 -10 -10 -10 -9 -8 -7 -7 -7 -7 -6 -6 -6 -6 -6 -6 -5 -4 -3 -2 --------- Run | Scr Mat Min Exi Min Mat Fac Low Low Dat Pro Fac Ext Cet Arc Hub Fac Fac Res Res Distress Signals 20 | . 1 . . . 2 . . . . . . 4 2 1 . 3 1 4 2 Communications Jammed . | . . . . . . . . . . . . . . . . . . . . Distress Signals . | . . . . . . . . . . . . . . . . . . . . Times Spotted 261 | . 8 6 . . 16 2 8 16 . 2 6 25 23 16 32 29 5 43 24 Peak Tracking Total 12 | . 4 3 . . 4 2 5 7 . 1 5 5 5 2 7 5 4 11 12 Tactical Retreats 14 | . . 1 . . . 1 . 1 . . . . 2 . 1 1 1 5 1 Traps | -11 -10 -10 -10 -9 -8 -7 -7 -7 -7 -6 -6 -6 -6 -6 -6 -5 -4 -3 -2 ------- Run | Scr Mat Min Exi Min Mat Fac Low Low Dat Pro Fac Ext Cet Arc Hub Fac Fac Res Res Traps Triggered 15 | . 1 . . . 1 1 . . . . 1 4 . . 3 1 . . 3 Indirectly . | . . . . . . . . . . . . . . . . . . . . Trap Hack Attempts . | . . . . . . . . . . . . . . . . . . . . Triggered . | . . . . . . . . . . . . . . . . . . . . Disarmed . | . . . . . . . . . . . . . . . . . . . . Reprogrammed . | . . . . . . . . . . . . . . . . . . . . Reused . | . . . . . . . . . . . . . . . . . . . . Traps Extracted . | . . . . . . . . . . . . . . . . . . . . Installed . | . . . . . . . . . . . . . . . . . . . . Triggered . | . . . . . . . . . . . . . . . . . . . . Machines | -11 -10 -10 -10 -9 -8 -7 -7 -7 -7 -6 -6 -6 -6 -6 -6 -5 -4 -3 -2 ---------- Run | Scr Mat Min Exi Min Mat Fac Low Low Dat Pro Fac Ext Cet Arc Hub Fac Fac Res Res Machines Disabled 22 | . . 1 . . . . . . . . 1 . 3 2 12 2 . 1 . Max in Single Turn 10 | . . 1 . . . . . . . . . . 1 2 10 1 . 1 . Garrison Access 1 | . . . . . 1 . . . . . . . . . . . . . . Network Hub 1 | . . . . . . . . . . . . . . . 1 . . . . Machines Sabotaged . | . . . . . . . . . . . . . . . . . . . . Garrisons Compromised . | . . . . . . . . . . . . . . . . . . . . Overloaded Fab Kills . | . . . . . . . . . . . . . . . . . . . . Fab Network Shutdowns . | . . . . . . . . . . . . . . . . . . . . Hacking | -11 -10 -10 -10 -9 -8 -7 -7 -7 -7 -6 -6 -6 -6 -6 -6 -5 -4 -3 -2 --------- Run | Scr Mat Min Exi Min Mat Fac Low Low Dat Pro Fac Ext Cet Arc Hub Fac Fac Res Res Machines Accessed 49 | . 1 . 2 1 7 3 1 . 3 . 2 8 3 1 2 4 2 6 3 Terminals 34 | . 1 . . . 6 2 . . . . 1 8 3 . 2 1 2 6 2 Fabricators 3 | . . . . . . . . . . . 1 . . . . 1 . . 1 Repair Stations . | . . . . . . . . . . . . . . . . . . . . Recycling Units . | . . . . . . . . . . . . . . . . . . . . Scanalyzers . | . . . . . . . . . . . . . . . . . . . . Garrison Access 4 | . . . . . 1 1 . . . . . . . . . 2 . . . Total Hacks 153 | . 5 . 2 1 11 6 8 . 22 . 4 22 6 25 5 9 3 14 10 Successful 86 | . 3 . 2 1 2 1 8 . 22 . 1 7 4 25 2 2 1 4 1 Failed 67 | . 2 . . . 9 5 . . . . 3 15 2 . 3 7 2 10 9 Catastrophic 22 | . . . . . 3 . . . . . 1 5 1 . . 3 1 3 5 Database Lockouts . | . . . . . . . . . . . . . . . . . . . . Manual 75 | . 5 . 1 . 9 4 . . . . 2 20 2 1 5 2 3 15 6 Terminals 78 | . 5 . . . 9 4 . . . . 2 22 6 . 5 2 3 14 6 Fabricators 8 | . . . . . . . . . . . 2 . . . . 2 . . 4 Repair Stations . | . . . . . . . . . . . . . . . . . . . . Recycling Units . | . . . . . . . . . . . . . . . . . . . . Scanalyzers . | . . . . . . . . . . . . . . . . . . . . Garrison Access 9 | . . . . . 2 2 . . . . . . . . . 5 . . . Terminal Hacks 68 | . 2 . 2 1 . . 8 . 22 . . 2 4 25 1 . . 1 . Record 43 | . . . 1 . . . 8 . 6 . . . 3 25 . . . . . Part Schematic 5 | . . . . . . . . . 5 . . . . . . . . . . Robot Schematic 8 | . . . . . . . . . 8 . . . . . . . . . . Prototype ID Bank 3 | . . . . . . . . . 3 . . . . . . . . . . Open Door 2 | . . . . 1 . . . . . . . . 1 . . . . . . Level Access Points 1 | . . . . . . . . . . . . . . . . . . 1 . Branch Access Points 1 | . 1 . . . . . . . . . . . . . . . . . . Unreport Threat 2 | . . . . . . . . . . . . 2 . . . . . . . Zone Layout 2 | . 1 . . . . . . . . . . . . . 1 . . . . EX-Prototype ID Bank 1 | . . . 1 . . . . . . . . . . . . . . . . Fabricator Hacks 4 | . . . . . . . . . . . 1 . . . . 2 . . 1 Load Schematic 3 | . . . . . . . . . . . 1 . . . . 1 . . 1 Build 1 | . . . . . . . . . . . . . . . . 1 . . . Repair Station Hacks . | . . . . . . . . . . . . . . . . . . . . Recycling Unit Hacks . | . . . . . . . . . . . . . . . . . . . . Scanalyzer . | . . . . . . . . . . . . . . . . . . . . Garrison Access Hacks 1 | . . . . . 1 . . . . . . . . . . . . . . Seal Access 1 | . . . . . 1 . . . . . . . . . . . . . . Unauthorized Hacks 13 | . 1 . . . 1 1 . . . . . 5 . . 1 . 1 3 . Terminals 13 | . 1 . . . 1 1 . . . . . 5 . . 1 . 1 3 . Botnet 12 | . 1 . . . 1 1 . . . . . 5 . . 1 . 1 2 . Detonate 1 | . . . . . . . . . . . . . . . . . . 1 . Fabricators . | . . . . . . . . . . . . . . . . . . . . Repair Stations . | . . . . . . . . . . . . . . . . . . . . Recycling Units . | . . . . . . . . . . . . . . . . . . . . Scanalyzers . | . . . . . . . . . . . . . . . . . . . . Garrison Access . | . . . . . . . . . . . . . . . . . . . . Data Cores Recovered 1 | . . . . . . . . . . . . 1 . . . . . . . Used . | . . . . . . . . . . . . . . . . . . . . Hacking Detections 39 | . 1 . . . 6 3 . . . . 2 8 2 . 2 4 2 6 3 Full Trace Events 4 | . . . . . 1 . . . . . . . 2 . . . . 1 . Feedback Events . | . . . . . . . . . . . . . . . . . . . . Feedback Blocked . | . . . . . . . . . . . . . . . . . . . . Robot Schematics Acquired 8 | . . . . . . . . . 8 . . . . . . . . . . Robots Built . | . . . . . . . . . . . . . . . . . . . . Matter . | . . . . . . . . . . . . . . . . . . . . Time . | . . . . . . . . . . . . . . . . . . . . Total Robot Build Rating . | . . . . . . . . . . . . . . . . . . . . Part Schematics Acquired 5 | . . . . . . . . . 5 . . . . . . . . . . Parts Built 1 | . . . . . . . . . . . . . . . . 1 . . . Matter 285 | . . . . . . . . . . . . . . . . 285 . . . Time 152 | . . . . . . . . . . . . . . . . 152 . . . Total Part Build Rating 5 | . . . . . . . . . . . . . . . . 5 . . . Parts Repaired . | . . . . . . . . . . . . . . . . . . . . Time . | . . . . . . . . . . . . . . . . . . . . Parts Recycled . | . . . . . . . . . . . . . . . . . . . . Recycled Matter . | . . . . . . . . . . . . . . . . . . . . Retrieved Matter . | . . . . . . . . . . . . . . . . . . . . Retrieved Components . | . . . . . . . . . . . . . . . . . . . . Parts Scanalyzed . | . . . . . . . . . . . . . . . . . . . . Part Schematics Acquired . | . . . . . . . . . . . . . . . . . . . . Parts Damaged . | . . . . . . . . . . . . . . . . . . . . Bothacking | -11 -10 -10 -10 -9 -8 -7 -7 -7 -7 -6 -6 -6 -6 -6 -6 -5 -4 -3 -2 ------------ Run | Scr Mat Min Exi Min Mat Fac Low Low Dat Pro Fac Ext Cet Arc Hub Fac Fac Res Res Used RIF Installer . | . . . . . . . . . . . . . . . . . . . . Robots Hacked . | . . . . . . . . . . . . . . . . . . . . Non-combat . | . . . . . . . . . . . . . . . . . . . . Combat . | . . . . . . . . . . . . . . . . . . . . Robot Hacks Applied . | . . . . . . . . . . . . . . . . . . . . Relay Couplers Released . | . . . . . . . . . . . . . . . . . . . . Robots Rewired 25 | . . . . . . . . 2 . . . 23 . . . . . . . Allies Hacked 5 | . . . . . . . . . . . . . 1 . . . . 4 . Hacks Repelled 1 | . . . . . . . . . . . . . . . . . . 1 . Allies | -11 -10 -10 -10 -9 -8 -7 -7 -7 -7 -6 -6 -6 -6 -6 -6 -5 -4 -3 -2 -------- Run | Scr Mat Min Exi Min Mat Fac Low Low Dat Pro Fac Ext Cet Arc Hub Fac Fac Res Res Total Allies 39 | . . . . . . . . 2 . 1 . 31 1 . . . . 4 . Largest Group 16 | . . . . . . . . 2 . 1 1 16 14 1 . . . 2 . Highest-Rated Group 579 | . . . . . . . . 52 . 94 94 500 579 156 . . . 137 . Highest-Rated Ally 156 | . . . . . . . . 32 . 94 94 156 156 156 . . . 90 . Total Orders . | . . . . . . . . . . . . . . . . . . . . Ally Attacks 401 | . . . . . . . . 4 . 14 13 190 148 1 . . . 31 . Total Damage 9230 | . . . . . . . . 161 . 482 392 4147 3277 44 . . . 727 . Kills 74 | . . . . . . . . 3 . 5 2 27 29 . . . . 8 . Allies Corrupted . | . . . . . . . . . . . . . . . . . . . . Allies Melted . | . . . . . . . . . . . . . . . . . . . . Field Lobotomies 4 | . . . . . . . . . . . . . 2 . . . . 2 . Intel | -11 -10 -10 -10 -9 -8 -7 -7 -7 -7 -6 -6 -6 -6 -6 -6 -5 -4 -3 -2 ------- Run | Scr Mat Min Exi Min Mat Fac Low Low Dat Pro Fac Ext Cet Arc Hub Fac Fac Res Res Robot Analysis Total . | . . . . . . . . . . . . . . . . . . . . Derelict Logs Recovered 2 | . . 1 . 1 . . . . . . . . . . . . . . . Drone Launches . | . . . . . . . . . . . . . . . . . . . . Drone Recoveries . | . . . . . . . . . . . . . . . . . . . . Exploration | -11 -10 -10 -10 -9 -8 -7 -7 -7 -7 -6 -6 -6 -6 -6 -6 -5 -4 -3 -2 ------------- Run | Scr Mat Min Exi Min Mat Fac Low Low Dat Pro Fac Ext Cet Arc Hub Fac Fac Res Res Turns Passed 12352 | 65 234 489 455 173 897 160 558 513 86 379 491 1232 625 408 790 1808 725 1394 870 Spaces Moved 6867 | 47 155 254 243 129 615 133 420 335 76 310 355 587 312 186 329 734 449 738 460 Core 112 | 3 . . . . . . . . . . . . . . . 1 . 2 106 Treads 156 | . . . . . . . . . . . . . . . . . . . 156 Legs 2797 | 44 155 254 243 8 . . . . . . . 290 312 186 329 733 160 76 7 Wheels 3802 | . . . . 121 615 133 420 335 76 310 355 297 . . . . 289 660 191 Hover . | . . . . . . . . . . . . . . . . . . . . Flight . | . . . . . . . . . . . . . . . . . . . . Fastest Speed 50 | 50 120 180 180 110 110 110 110 106 113 113 113 113 153 183 153 150 110 110 50 Average Speed 138 | 115 133 180 184 118 110 110 110 106 113 113 113 147 179 183 180 165 124 126 132 Slowest Speed 1900 | 120 150 180 210 210 110 110 110 120 113 113 113 330 183 183 183 1900 170 1200 700 Overloaded Moves . | . . . . . . . . . . . . . . . . . . . . Propulsion Burnouts . | . . . . . . . . . . . . . . . . . . . . Robots Hopped . | . . . . . . . . . . . . . . . . . . . . Cave-ins Triggered 1 | . . . . . . . . . . . . . . . . . . . 1 Exploration Rate (%) 41 | 3 34 54 61 39 40 4 42 56 68 55 10 77 94 96 36 19 14 20 16 Regions Visited 19 Branch Regions 11 Pre-discovered Areas 2 | . . . 1 . . . . . 1 . . . . . . . . . . Known Exits Taken 14 | . 1 . . . 1 1 1 1 1 1 1 1 . 1 1 1 1 1 . Unknown Exits Taken 5 | 1 . 1 1 1 . . . . . . . . 1 . . . . . . Scrap Searched 11 | . . . . . . . 10 . . 1 . . . . . . . . . Spaces Dug 92 | . . . . . 3 . 6 . . 2 12 3 . . 6 7 14 33 6 Terrain Destroyed 443 | . . 13 . . 3 . 6 50 . 2 13 3 3 11 206 25 14 60 34 Melee 89 | . . . . . . . 6 . . 2 12 3 . . 6 7 14 33 6 Projectile 60 | . . . . . 3 . . . . . 1 . 3 7 28 14 . 1 3 AOE 294 | . . 13 . . . . . 50 . . . . . 4 172 4 . 26 25 Actions | -11 -10 -10 -10 -9 -8 -7 -7 -7 -7 -6 -6 -6 -6 -6 -6 -5 -4 -3 -2 --------- Run | Scr Mat Min Exi Min Mat Fac Low Low Dat Pro Fac Ext Cet Arc Hub Fac Fac Res Res Total 8909 | 54 168 273 249 151 793 146 472 443 76 332 406 897 358 233 438 1154 587 1035 644 Wait 873 | . . 9 . 5 103 2 23 42 . 17 . 5 7 34 48 289 85 128 76 Move 6850 | 46 154 253 242 128 614 132 419 334 75 309 354 586 311 185 329 733 448 738 460 Hop . | . . . . . . . . . . . . . . . . . . . . Pick Up 81 | 2 5 2 3 5 12 4 1 1 . 1 9 3 2 . 4 11 7 3 6 Fast Attach 99 | 6 1 . . 2 6 . . . . . 3 4 3 1 6 15 7 17 28 Attach 63 | . . . . 2 3 2 . 4 1 . 2 2 . . 2 14 3 15 13 Detach 22 | . . . . 5 1 . . . . . . . . . . 3 4 5 4 Swap 106 | . 1 2 3 1 10 2 7 8 . 2 8 18 13 1 5 5 8 11 1 Drop 88 | . . . 1 2 19 3 1 . . . 8 12 12 2 4 2 8 7 7 Fire 344 | . 7 7 . 1 25 1 15 24 . 1 10 23 9 10 33 74 3 66 35 Melee 103 | . . . . . . . 6 . . 2 12 3 1 . 7 8 14 44 6 Ram 1 | . . . . . . . . . . . . . . . . . . . 1 Kick . | . . . . . . . . . . . . . . . . . . . . Crush 7 | . . . . . . . . . . . . . . . . . . . 7 Escape Stasis 20 | . . . . . . . . . . . . 20 . . . . . . . Rewire 252 | . . . . . . . . 30 . . . 221 . . . . . 1 . Trap . | . . . . . . . . . . . . . . . . . . . . Miscellaneous . | . . . . . . . . . . . . . . . . . . . . Route ------- -11/Scrapyard -10/Materials -10/Mines (discovered 2 exits: [*Mat] / *Exi) -10/Exiles -9/Mines -8/Materials (discovered 2 exits: *Fac x2) -7/Factory -7/Lower Caves -7/Lower Caves (discovered 2 exits: Fac / *Dat) -7/Data Miner -6/Proximity Caves -6/Factory (discovered 3 exits: Fac x2 / *Ext) -6/Extension (discovered 3 exits: *Fac x2 / *Cet) -6/Cetus (discovered 3 exits: *Fac x2 / *Arc) -6/Archives (discovered 3 exits: *Fac / *Hub x2) -6/Hub_04(d) (discovered 2 exits: *Fac x2) -5/Factory -4/Factory -3/Research (discovered 4 exits: *Res x3 / Qua) -2/Research (discovered 1 exit: [*Acc]) History --------- Turn | Location | Event 14 | -11/Scrapyard | Discovered new exit (range 14) 66 | -11/Scrapyard | Entered Materials 260 | -10/Materials | Identified exit to Mines 300 | -10/Materials | Entered Mines 327 | -10/Mines | Build established: Mutant 435 | -10/Mines | Assisted by bots powering up and referring to "LRC-V3" 598 | -10/Mines | Learned 2 Materials zone layouts 654 | -10/Mines | Discovered new exit (range 16) 752 | -10/Mines | Assembled infested the area 757 | -10/Mines | Assisted by a Guerilla fighting off Assembled 780 | -10/Mines | Deemed a non-threat by the Exiles lab entrance 782 | -10/Mines | Discovered new exit (range 5) 789 | -10/Mines | Entered Exiles 833 | -10/Exiles | Met 8R-AWN 863 | -10/Exiles | Met EX-HEX 926 | -10/Exiles | Met EX-BIN 948 | -10/Exiles | Aligned with FarCom system 950 | -10/Exiles | Given EX-Vault access code 995 | -10/Exiles | Opened EX-Vault 1005 | -10/Exiles | Found Field Lobotomy Kit 1044 | -10/Exiles | Warned to stay clear of 0b10 Research branches 1095 | -10/Exiles | Met EX-DEC 1105 | -10/Exiles | Learned location of Zion (-6) 1215 | -10/Exiles | Discovered new exit (range 14) 1244 | -10/Exiles | Left Exiles lab with Field Lobotomy Kit 1244 | -10/Exiles | Entered Mines 1283 | -9/Mines | Learned location of 1 exit from Materials 1359 | -9/Mines | Discovered new exit (range 12) 1374 | -9/Mines | Met a Derelict shopkeep closing up shop 1417 | -9/Mines | Entered Materials 1417 | -8/Materials | Evolved 4 slots: Propulsion x1, Utility x3 1418 | -8/Materials | Identified exit to Factory 1461 | -8/Materials | Build established: Hauler-Mutant 2314 | -8/Materials | Entered Factory 2314 | -7/Factory | Evolved 2 slots: Power x1, Utility x1 2455 | -7/Factory | Discovered new exit (range 5) 2463 | -7/Factory | Identified exit to Lower Caves 2474 | -7/Factory | Entered Lower Caves 2925 | -7/Lower Caves | Learned location of 1 exit from Research 2925 | -7/Lower Caves | Learned 8 Factory zone layouts 2925 | -7/Lower Caves | Learned Research trap positions 3020 | -7/Lower Caves | Discovered new exit (range 11) 3030 | -7/Lower Caves | Identified exit to Lower Caves 3032 | -7/Lower Caves | Entered another Lower Caves area 3033 | -7/Lower Caves | Identified exit to Factory 3093 | -7/Lower Caves | Attracted the attention of an 0b10 outpost 3132 | -7/Lower Caves | Destroyed 7 combat bots 3475 | -7/Lower Caves | Encountered a Warlord checkpoint 3525 | -7/Lower Caves | Discovered new exit (range 16) 3540 | -7/Lower Caves | Identified exit to Data Miner 3544 | -7/Lower Caves | Ambushed by wild Derelicts 3545 | -7/Lower Caves | Entered Data Miner 3546 | -7/Data Miner | Discovered new exit (range 6) 3568 | -7/Data Miner | Met Data Miner 3587 | -7/Data Miner | Learned location of Section 7 (-3) 3587 | -7/Data Miner | Acquired the access code to Warlord's prototype stash 3604 | -7/Data Miner | Received God Mode back door access code from Data Miner 3628 | -7/Data Miner | Identified exit to Proximity Caves 3631 | -7/Data Miner | Entered Proximity Caves 3703 | -6/Proximity Caves | Escorted by Enhanced Grunt 4010 | -6/Proximity Caves | Entered Factory 4010 | -6/Factory | Accompanied by 1 ally 4010 | -6/Factory | Evolved 2 slots: Utility x1, Weapon x1 4011 | -6/Factory | Identified exit to Factory 4483 | -6/Factory | Discovered new exit (range 7) 4500 | -6/Factory | Identified exit to Extension 4501 | -6/Factory | Entered Extension 4602 | -6/Extension | Rescued a captive Derelict 4603 | -6/Extension | Rescued a captive Derelict 4971 | -6/Extension | Rescued a captive Derelict 4973 | -6/Extension | Rescued a captive Derelict 5176 | -6/Extension | Discovered exit to Factory (range 3) 5263 | -6/Extension | Rescued a captive Derelict 5263 | -6/Extension | Rescued a captive Derelict 5391 | -6/Extension | Build established: Scavenger-Tank 5628 | -6/Extension | Rescued a captive Derelict 5650 | -6/Extension | Rescued A7 5697 | -6/Extension | Discovered exit to Factory (range 10) 5699 | -6/Extension | Discovered new exit (range 6) 5722 | -6/Extension | Identified exit to Cetus 5733 | -6/Extension | Entered Cetus 5733 | -6/Cetus | Accompanied by 13 allies 5738 | -6/Cetus | Acquired a Cetus Manufacturing Module code from A7 5752 | -6/Cetus | Build established: Commander-Tank 5754 | -6/Cetus | Spotted Cetus Guard 5754 | -6/Cetus | Spotted Cetus Guard 5755 | -6/Cetus | Spotted Cetus Guard 5761 | -6/Cetus | Spotted Cetus Guard 5764 | -6/Cetus | Assimilated Cetus Guard with FLK Orb 5769 | -6/Cetus | Allies destroyed Cetus Guard 5778 | -6/Cetus | Allies destroyed Cetus Guard 5855 | -6/Cetus | Discovered exit to Factory (range 15) 6003 | -6/Cetus | Cetus Manufacturing Module disabled 6028 | -6/Cetus | Failed to start Cetus Manufacturing Module 6064 | -6/Cetus | Escorted A7 to Cetus Mainframe 6150 | -6/Cetus | Discovered new exit (range 16) 6184 | -6/Cetus | Spotted Cetus Guard 6184 | -6/Cetus | Spotted Cetus Guard 6186 | -6/Cetus | Spotted Cetus Guard 6186 | -6/Cetus | Spotted Cetus Guard 6188 | -6/Cetus | Assimilated CK-IJN(h) with FLK Orb 6190 | -6/Cetus | Allies destroyed Cetus Guard 6197 | -6/Cetus | Destroyed Cetus Guard 6197 | -6/Cetus | Destroyed Cetus Guard 6198 | -6/Cetus | Allies destroyed Cetus Guard 6203 | -6/Cetus | Allies destroyed Cetus Guard 6225 | -6/Cetus | Discovered exit to Factory (range 15) 6237 | -6/Cetus | Met Revision 17 6358 | -6/Cetus | Entered Archives 6358 | -6/Archives | Accompanied by 1 ally 6363 | -6/Archives | Received a hacking code to weaken MAIN.C 6475 | -6/Archives | Build established: Scavenger-Tank 6551 | -6/Archives | Unable to access archive contents 6579 | -6/Archives | Unable to access archive contents 6597 | -6/Archives | Unable to access archive contents 6601 | -6/Archives | Discovered new exit (range 15) 6620 | -6/Archives | Discovered new exit (range 14) 6642 | -6/Archives | Identified exit to Hub_04(d) 6682 | -6/Archives | Discovered exit to Factory (range 16) 6766 | -6/Archives | Entered Hub_04(d) 6794 | -6/Hub_04(d) | Build established: Scavenger-Mutant 6907 | -6/Hub_04(d) | Discovered exit to Factory (range 14) 7159 | -6/Hub_04(d) | Discovered exit to Factory (range 4) 7313 | -6/Hub_04(d) | Network Hub disabled 7466 | -6/Hub_04(d) | First assault squad dispatched 7469 | -6/Hub_04(d) | Build established: Scavenger-Tank 7515 | -6/Hub_04(d) | Spotted Lightning 7536 | -6/Hub_04(d) | Spotted Lightning 7536 | -6/Hub_04(d) | Spotted Lightning 7542 | -6/Hub_04(d) | System corruption reached 10% 7556 | -6/Hub_04(d) | Entered Factory 7556 | -5/Factory | Evolved 2 slots: Propulsion x1, Utility x1 7579 | -5/Factory | Lost 4 parts (3u1w) 7985 | -5/Factory | Fabricated Lgt. Regenerative Plating? 8591 | -5/Factory | Build established: Scavenger-Mutant 8684 | -5/Factory | Garrison activated, responded to threat 8764 | -5/Factory | Lost 9 parts (3n1u5w) 8949 | -5/Factory | System corruption reached 10% 9203 | -5/Factory | Discovered new exit (range 12) 9242 | -5/Factory | Identified exit to Factory 9246 | -5/Factory | Lost 3 parts (1n1u1w) 9357 | -5/Factory | Found Hvy. Reactive Plating 9364 | -5/Factory | Entered another Factory area 9364 | -4/Factory | Evolved 2 slots: Utility x2 9733 | -4/Factory | Spotted B-86 Titan 10065 | -4/Factory | Discovered new exit (range 16) 10081 | -4/Factory | Identified exit to Research 10089 | -4/Factory | Entered Research 10089 | -3/Research | Evolved 2 slots: Utility x2 10090 | -3/Research | Identified exit to Quarantine 10091 | -3/Research | Loaded intel: 97 trap records 10240 | -3/Research | Found Gamma Bomb Array 10274 | -3/Research | Build established: Hauler-Assassin 10893 | -3/Research | Garrison activated, responded to threat 11138 | -3/Research | Garrison activated, responded to threat 11171 | -3/Research | System corruption reached 10% 11272 | -3/Research | Assimilated P-80 Master with FLK Orb 11275 | -3/Research | Master 8a assimilated hostile G-67 Veteran 11299 | -3/Research | P-80 Master assimilated allied Veteran 8a 11303 | -3/Research | Lost 27 parts (3p10n7u7w) 11335 | -3/Research | Garrison activated, responded to threat 11389 | -3/Research | Assimilated P-80 Master with FLK Orb 11401 | -3/Research | Core integrity fell below 50% 11421 | -3/Research | Lost 3 parts (1n2u) 11428 | -3/Research | Identified exit to Research 11470 | -3/Research | Incoming investigation squad redirected 11483 | -3/Research | Entered another Research area 11483 | -2/Research | Evolved 2 slots: Utility x2 11510 | -2/Research | Lost 5 parts (1p2n2u) 11967 | -2/Research | Crushed by falling debris 11967 | -2/Research | System corruption reached 10% 12011 | -2/Research | Lost 18 parts (2p5n5u6w) 12307 | -2/Research | Core integrity fell below 50% 12347 | -2/Research | Core integrity fell below 20% 12350 | -2/Research | Discovered new exit (range 6) 12353 | -2/Research | Destroyed by G-73 Enforcer with Phase Gun Last Messages --------------- 12311_ Y-72 Warden misfires. 12311_ Slug penetrates Wall. 12314_ System corrupted: Energy discharge (-6). 12315_ Com. HERF Cannon destroyed. 12316_ P-80 Master resets Y-72 Warden, system corruption cleaned. 12318_ Centrium Leg destroyed. 12326_ Adv. Target Analyzer destroyed. 12330_ System corrupted: Component data lost. 12338_ Triggered Alarm Trap. 12338_ An alarm sounds. 12338_ ALERT: Alarm triggered, dispatching investigation squad. 12342_ U-05 Engineer destroyed. 12345_ U-05 Engineer lays Concrete. 12347_ K-01 Serf collects debris. 12347_ U-05 Engineer lays Concrete. 12347_ Slammed into G-73 Enforcer. 12347_ Destabilizing: Core damaged (-43). 12350_ EXIT=FOUND 12350_ U-05 Engineer lays Concrete. 12351_ K-01 Serf collects debris. Map ----- +----------------------------------------------------+ | ???????????????????????# ????????????????????????? | | ?????????????????????###/######+##???????????????? | | ?????????????????????#! #??####+????????? | | ?????????????????????# #??# ????????? | | ?????????????????????# """ ! #??# ????????? | | ?????????????????????# """ #??# ?????????? | | ?????????????????????# """ ???# ?????????? | | ?????????????????????? w ?????# ?????????? | | ???????????????????????? ???????? ?????????? | | ???????????????????#######/###########+#####?????? | | ???????????????????# #?????? | | ???????????????????# #????## | | ???????????????????# #????# | | ???????????????????# * | #????# | | ???????????????????# !%! ###### | | ???????????????????# p # | | ???????????????????# + | | ???????????????????# p##+########### # | | ???????????????????##########g #????????????# # | | ????????????????????????????# #????????????# # | | ????????????????????????????#gp #????????????# # | | ??????????????????????#######YgR #????????????# ## | | ??????????????????????# ! ## #????????????# | | ??????????????????????# g u #????????????# | | ??????????????????????# < u #????????????# | | ??????????????????????# @ #######????????????# | | ??????????????????????## ##??????????????????# | | ???????????????????????# #???????????????????# | | ???????????????????????# #???????????????????# | | ???????????????????????# #???????????????????# | | ???????????????????????# #???????????????????# | | ?????????h????????????? ???????????????????# | | ??????????????h???????? k ??????h????????????# | | ??????????????????????##/##???????????????????# | | ??????????????????????? ?????????h???????????# | | ??????????????????????? ???????????????+###### | | ???????????C???????????" ???????????????? | | ???????????????????????" ???????????????????### | | ??????????????????????? ?????????????????????#+## | | ???????????????????????? ????????????????????????# | | ???????????????????????? ????????????????????????# | | ?????????????????????????????????????????????????+ | | ?????????????????????????????????????????????????# | | ?????????????????????????????????????????????????# | | ?????????????????????????????????????????????????# | | ?????????????????????????????????????????????????# | | ????????????????????????????????????????????????? | | ???????????????????????????????????????????????? | | ???????????????????????????????????????????????### | | ?????????????????????????????????????????????????# | +----------------------------------------------------+ Best States ------------- Heat Dissipation 87 Coolant Potential 100 Energy Generation 38 Energy Capacity 550 Matter Stores 300 Matter Capacity 300 Sight Range 16 Robot Scan Range 13 Terrain Scan Range 20 Terrain Scan Density 110 Armor Coverage 1200 Resistance: KI 40 Resistance: TH 25 Utility Shielding 66 Weapon Cycling 25 Evasion (%) 50 Target Analysis 8 Core Analysis 8 Recoil Reduction 4 Overload Amplification 75 Offensive Hacking 20 Item Schematics ----------------- Combat Drone Bay | -7/Data Miner | Free Lgt. Regenerative Plating | -7/Data Miner | Free Exp. Flexi-carbon Leg | -7/Data Miner | Free Exp. Terrain Scan Processor | -7/Data Miner | Free Exp. ECM Suite | -7/Data Miner | Free Robot Schematics ------------------ S-27 Virus | -7/Data Miner | Free G-50 Soldier | -7/Data Miner | Free G-67 Veteran | -7/Data Miner | Free L-41 Fighter | -7/Data Miner | Free X-72 Disruptor | -7/Data Miner | Free H-66 Slayer | -7/Data Miner | Free P-70 Sage | -7/Data Miner | Free I-36 Angel | -7/Data Miner | Free Fabricated ------------ Lgt. Regenerative Plating | x1 | -5/Factory Alien Tech Used ----------------- None Achievements -------------- Main Advantage Project G-00 Revising The Future Challenges ------------ None Game ------ Seed CooledChainFrame Manual? 0 Play Time 01:50:55 Cumulative 88.9 hours Start 2020.08.09 @ 19:24:36 End 2020.08.09 @ 21:16:00 Sessions 1 Manual Loads 0 Difficulty Rogue Special Mode None Game No. 97 Rogue 10 Adventurer 87 Explorer 0 Win Type - Total 3 Types 2/0/0/1/0/0/0 Lore% 46 Gallery% 60 Achievement% 52 Wizard Run 0 Options --------- ASCII 0 Keyboard 1 Movement Numpad Keybinds 0 Fullscreen 1 Font 18/Smallcaps Map View 76x50 Tactical HUD 1 Map Filters NONE Filters NONE Steam 1 RUN: b19fc7ce-fb0b-45ed-843f-fa44a6107543